fUSD/lending_fUSD_20260305
["ID","MTS","AMOUNT","RATE_DAILY","PERIOD"]
[407689081,1772676650445,-300.0,0.00041964,2]
[407689082,1772676650455,-300.0,0.00041964,2]
[407689083,1772676650465,-307.81574507,0.00041964,2]
[407689084,1772676650474,-300.0,0.00041964,2]
[407689085,1772676650484,-300.0,0.00041964,2]
[407689086,1772676650494,-300.0,0.00041964,2]
[407689087,1772676650503,-459.28818076,0.00041964,2]
[407689088,1772676650513,-300.0,0.00041964,2]
[407689089,1772676650522,-300.0,0.00041964,2]
[407689090,1772676650532,-300.0,0.00041964,2]
[407689091,1772676650542,-372.04418134,0.00041964,2]
[407689092,1772676650551,-300.0,0.00041964,2]
[407689093,1772676650560,-300.0,0.00041964,2]
[407689094,1772676650570,-300.22688916,0.00041964,2]
[407689095,1772676650579,-300.0,0.00041964,2]
[407689096,1772676650590,-300.0,0.00041964,2]
[407689097,1772676650599,-300.0,0.00041964,2]
[407689098,1772676650607,-519.48893357,0.00041964,2]
[407689099,1772676650617,-306.7705413,0.00041964,2]
[407689100,1772676650626,-300.0,0.00041964,2]
[407689101,1772676650636,-300.0,0.00041964,2]
[407689102,1772676650645,-300.0,0.00041964,2]
[407689103,1772676650655,-300.0,0.00041964,2]
[407689104,1772676650665,-300.0,0.00041964,2]
[407689105,1772676650674,-415.54550742,0.00041964,2]
[407689106,1772676650684,-300.0,0.00041964,2]
[407689107,1772676650693,-300.0,0.00041964,2]
[407689108,1772676650703,-300.0,0.00041964,2]
[407689109,1772676650713,-548.24364415,0.00041964,2]
[407689110,1772676650722,-300.0,0.00041964,2]
[407689111,1772676650731,-1083.97608781,0.00041964,2]
[407689112,1772676650741,-300.0,0.00041964,2]
[407689113,1772676650751,-300.0,0.00041964,2]
[407689114,1772676650761,-300.0,0.00041964,2]
[407689115,1772676650770,-300.0,0.00041964,2]
[407689116,1772676650780,-300.0,0.00041964,2]
[407689117,1772676650790,-300.0,0.00041964,2]
[407689118,1772676650800,-300.0,0.00041964,2]
[407689119,1772676650810,-300.0,0.00041964,2]
[407689120,1772676650821,-300.0,0.00041964,2]
[407689121,1772676650830,-1048.29641437,0.00041964,2]
[407689122,1772676650840,-306.55711131,0.00041964,2]
[407689123,1772676650850,-855.96946611,0.00041964,2]
[407689124,1772676650859,-300.0,0.00041964,2]
[407689125,1772676650869,-300.0,0.00041964,2]
[407689126,1772676650879,-1567.33728619,0.00041964,2]
[407689127,1772676650889,-300.0,0.00041964,2]
[407689128,1772676650899,-300.0,0.00041964,2]
[407689129,1772676650908,-300.0,0.00041964,2]
[407689130,1772676650918,-307.81574507,0.00041964,2]
[407689131,1772676650927,-300.0,0.00041964,2]
[407689132,1772676650937,-300.0,0.00041964,2]
[407689133,1772676650946,-459.28818076,0.00041964,2]
[407689134,1772676650955,-300.0,0.00041964,2]
[407689135,1772676650965,-300.0,0.00041964,2]
[407689136,1772676650975,-300.0,0.00041964,2]
[407689137,1772676650984,-300.0,0.00041964,2]
[407689138,1772676650992,-372.04418134,0.00041964,2]
[407689139,1772676651001,-300.0,0.00041964,2]
[407689140,1772676651010,-300.0,0.00041964,2]
[407689141,1772676651020,-300.0,0.00041964,2]
[407689142,1772676651031,-300.22688916,0.00041964,2]
[407689143,1772676651040,-300.0,0.00041964,2]
[407689144,1772676651050,-300.0,0.00041964,2]
[407689145,1772676651060,-519.48893357,0.00041964,2]
[407689146,1772676651071,-306.7705413,0.00041964,2]
[407689147,1772676651081,-300.0,0.00041964,2]
[407689148,1772676651093,-300.0,0.00041964,2]
[407689149,1772676651104,-300.0,0.00041964,2]
[407689150,1772676651118,-300.0,0.00041964,2]
[407689151,1772676651128,-404.00516818,0.00041964,2]
[407689152,1772676651138,-415.54550742,0.00041964,2]
[407689153,1772676651149,-300.0,0.00041964,2]
[407689154,1772676651162,-300.0,0.00041964,2]
[407689155,1772676651173,-300.0,0.00041964,2]
[407689156,1772676651182,-300.0,0.00041964,2]
[407689157,1772676651191,-1083.97608781,0.00041964,2]
[407689158,1772676651203,-300.0,0.00041964,2]
[407689159,1772676651212,-300.0,0.00041964,2]
[407689160,1772676651223,-300.0,0.00041964,2]
[407689161,1772676651233,-300.0,0.00041964,2]
[407689162,1772676651243,-300.0,0.00041964,2]
[407689163,1772676651252,-300.0,0.00041964,2]
[407689164,1772676651262,-300.0,0.00041964,2]
[407689165,1772676651271,-300.0,0.00041964,2]
[407689166,1772676651281,-300.0,0.00041964,2]
[407689167,1772676651291,-1048.50100127,0.00041964,2]
[407689168,1772676651300,-306.61635286,0.00041964,2]
[407689169,1772676651310,-300.0,0.00041964,2]
[407689170,1772676651319,-856.13486002,0.00041964,2]
[407689171,1772676651329,-300.0,0.00041964,2]
[407689172,1772676651341,-1060.82813272,0.00041964,2]
[407689173,1772676651351,-300.0,0.00041964,2]
[407689174,1772676651361,-300.0,0.00041964,2]
[407689175,1772676651371,-300.0,0.00041964,2]
[407689176,1772676651381,-307.87522791,0.00041964,2]
[407689177,1772676651391,-300.0,0.00041964,2]
[407689178,1772676651401,-300.0,0.00041964,2]
[407689179,1772676651410,-300.0,0.00041964,2]
[407689180,1772676651420,-459.37693596,0.00041964,2]
[407689181,1772676651430,-300.0,0.00041964,2]
[407689182,1772676651439,-300.0,0.00041964,2]
[407689183,1772676651449,-300.0,0.00041964,2]
[407689184,1772676651459,-372.1160746,0.00041964,2]
[407689185,1772676651468,-300.0,0.00041964,2]
[407689186,1772676651478,-300.0,0.00041964,2]
[407689187,1772676651488,-300.28645221,0.00041964,2]
[407689188,1772676651498,-396.11756045,0.00041964,2]
[407689189,1772676651509,-300.0,0.00041964,2]
[407689190,1772676651519,-300.0,0.00041964,2]
[407689191,1772676651529,-519.58908537,0.00041964,2]
[407689192,1772676651539,-306.82968309,0.00041964,2]
[407689193,1772676651549,-543.33595384,0.00041964,2]
[407689194,1772676651559,-300.0,0.00041964,2]
[407689195,1772676651568,-300.0,0.00041964,2]
[407689196,1772676651578,-515.64887352,0.00041964,2]
[407689197,1772676651587,-355.74075202,0.00041964,2]
[407689198,1772676651786,-59.89556537,0.00041964,2]
[407689199,1772676651796,-300.0,0.00041964,2]
[407689200,1772676651807,-300.0,0.00041964,2]
[407689201,1772676651817,-300.0,0.00041964,2]
[407689202,1772676651827,-301.93152622,0.00041964,2]
[407689203,1772676651837,-300.0,0.00041964,2]
[407689204,1772676651847,-1084.19175733,0.00041964,2]
[407689205,1772676651857,-300.0,0.00041964,2]
[407689206,1772676651867,-300.0,0.00041964,2]
[407689207,1772676651877,-300.0,0.00041964,2]
[407689208,1772676651887,-300.0,0.00041964,2]
[407689209,1772676651897,-300.0,0.00041964,2]
[407689210,1772676651906,-300.0,0.00041964,2]
[407689211,1772676651916,-300.0,0.00041964,2]
[407689212,1772676651925,-188.48789942,0.00041964,2]
[407689213,1772676651976,-111.51210058,0.00041964,2]
[407689214,1772676652133,-341.24586893,0.00041964,2]
[407689215,1772676652143,-1048.50100127,0.00041964,2]
[407689216,1772676652156,-306.61635286,0.00041964,2]
[407689217,1772676652166,-367.99541409,0.00041964,2]
[407689218,1772676652175,-856.13486002,0.00041964,2]
[407689219,1772676652185,-300.0,0.00041964,2]
[407689220,1772676652194,-300.0,0.00041964,2]
[407689221,1772676652204,-300.0,0.00041964,2]
[407689222,1772676652213,-300.0,0.00041964,2]
[407689223,1772676652223,-307.87522791,0.00041964,2]
[407689224,1772676652234,-300.0,0.00041964,2]
[407689225,1772676652244,-298.09971114,0.00041964,2]
[407689226,1772676652255,-1.90028886,0.00041964,2]
[407689227,1772676652264,-553.28861263,0.00041964,2]
[407689228,1772676652275,-459.37693596,0.00041964,2]
[407689229,1772676652284,-300.0,0.00041964,2]
[407689230,1772676652294,-300.0,0.00041964,2]
[407689231,1772676652304,-300.0,0.00041964,2]
[407689232,1772676652314,-372.1160746,0.00041964,2]
[407689233,1772676652324,-300.0,0.00041964,2]
[407689234,1772676652334,-300.0,0.00041964,2]
[407689235,1772676652344,-300.28645221,0.00041964,2]
[407689236,1772676652354,-424.43687031,0.00041964,2]
[407689237,1772676652363,-300.0,0.00041964,2]
[407689238,1772676652372,-519.58908537,0.00041964,2]
[407689239,1772676652382,-306.82968309,0.00041964,2]
[407689240,1772676652392,-300.0,0.00041964,2]
[407689241,1772676652402,-300.0,0.00041964,2]
[407689242,1772676652412,-183.0732928,0.00041964,2]
[407689243,1772676652428,-232.56302459,0.00041964,2]
[407689244,1772676652438,-532.97683451,0.00041964,2]
[407689245,1772676652448,-300.0,0.00041964,2]
[407689246,1772676652457,-323.68363037,0.00041964,2]
[407689247,1772676652466,-300.0,0.00041964,2]
[407689248,1772676652476,-1084.19175733,0.00041964,2]
[407689249,1772676652485,-300.0,0.00041964,2]
[407689250,1772676652494,-300.0,0.00041964,2]
[407689251,1772676652504,-300.0,0.00041964,2]
[407689252,1772676652514,-300.0,0.00041964,2]
[407689253,1772676652523,-300.0,0.00041964,2]
[407689254,1772676652532,-300.0,0.00041964,2]
[407689255,1772676652542,-300.0,0.00041964,2]
[407689256,1772676652553,-300.0,0.00041964,2]
[407689257,1772676652562,-1048.50100127,0.00041964,2]
[407689258,1772676652572,-306.61635286,0.00041964,2]
[407689259,1772676652582,-722.43756218,0.00041964,2]
[407689260,1772676652596,-133.69729784,0.00041964,2]
[407689261,1772676652605,-493.21516837,0.00041964,2]
[407689262,1772676652614,-300.0,0.00041964,2]
[407689263,1772676652624,-441.42924463,0.00041964,2]
[407689264,1772676652634,-508.7129299,0.00041964,2]
[407689265,1772676652644,-307.87522791,0.00041964,2]
[407689266,1772676652654,-300.0,0.00041964,2]
[407689267,1772676652664,-300.0,0.00041964,2]
[407689268,1772676652674,-459.37693596,0.00041964,2]
[407689269,1772676652684,-300.0,0.00041964,2]
[407689270,1772676652693,-300.0,0.00041964,2]
[407689271,1772676652704,-342.2476436,0.00041964,2]
[407689272,1772676652713,-372.1160746,0.00041964,2]
[407689273,1772676652723,-300.0,0.00041964,2]
[407689274,1772676652732,-347.47046107,0.00041964,2]
[407689275,1772676652741,-300.28645221,0.00041964,2]
[407689276,1772676652751,-179.09208278,0.00041964,2]
[407689277,1772676652832,-120.90791722,0.00041964,2]
[407689278,1772676652843,-519.58908537,0.00041964,2]
[407689279,1772676652853,-306.82968309,0.00041964,2]
[407689280,1772676652862,-300.0,0.00041964,2]
[407689281,1772676652872,-300.0,0.00041964,2]
[407689282,1772676652882,-415.63631739,0.00041964,2]
[407689283,1772676652891,-300.0,0.00041964,2]
[407689284,1772676652901,-300.0,0.00041964,2]
[407689285,1772676652911,-1084.19175733,0.00041964,2]
[407689286,1772676652922,-319.56934951,0.00041964,2]
[407689287,1772676652932,-462.70135974,0.00041964,2]
[407689288,1772676652942,-452.77184384,0.00041964,2]
[407689289,1772676652952,-300.0,0.00041964,2]
[407689290,1772676652962,-441.47195899,0.00041964,2]
[407689291,1772676652972,-461.92462196,0.00041964,2]
[407689292,1772676652981,-463.647063,0.00041964,2]
[407689293,1772676652991,-337.36743689,0.00041964,2]
[407689294,1772676653000,-300.0,0.00041964,2]
[407689295,1772676653009,-1048.50100127,0.00041964,2]
[407689296,1772676653020,-306.61635286,0.00041964,2]
[407689297,1772676653031,-856.13486002,0.00041964,2]
[407689298,1772676653042,-593.16713803,0.00041964,2]
[407689299,1772676653052,-307.87522791,0.00041964,2]
[407689300,1772676653062,-300.0,0.00041964,2]
[407689301,1772676653072,-300.0,0.00041964,2]
[407689302,1772676653081,-300.0,0.00041964,2]
[407689303,1772676653090,-459.37693596,0.00041964,2]
[407689304,1772676653100,-300.0,0.00041964,2]
[407689305,1772676653109,-372.1160746,0.00041964,2]
[407689306,1772676653118,-300.0,0.00041964,2]
[407689307,1772676653127,-300.28645221,0.00041964,2]
[407689308,1772676653136,-300.0,0.00041964,2]
[407689309,1772676653145,-519.58908537,0.00041964,2]
[407689310,1772676653157,-306.82968309,0.00041964,2]
[407689311,1772676653166,-300.0,0.00041964,2]
[407689312,1772676653174,-300.0,0.00041964,2]
[407689313,1772676653184,-415.63631739,0.00041964,2]
[407689314,1772676653195,-300.0,0.00041964,2]
[407689315,1772676653205,-300.0,0.00041964,2]
[407689316,1772676653216,-1084.19175733,0.00041964,2]
[407689317,1772676653229,-300.0,0.00041964,2]
[407689318,1772676653239,-300.0,0.00041964,2]
[407689319,1772676653248,-156.9,0.0004199,91]
[407689320,1772676653258,-400.0,0.00042,2]
[407689321,1772676653266,-151.0,0.000421,120]
[407689322,1772676653275,-168.0,0.00042188,2]
[407689323,1772676653284,-350.0,0.00042195,3]
[407689324,1772676653294,-156.0,0.000422,120]
[407689325,1772676653303,-155.0682,0.0004222,7]
[407689326,1772676653312,-2000.0,0.000423,2]
[407689327,1772676653321,-166.66,0.00042315,30]
[407689328,1772676653331,-715.35,0.00042423,2]
[407689329,1772676653340,-153.16450217,0.00042438,120]
[407689330,1772676653350,-2741.0,0.00042491,60]
[407689331,1772676653359,-6001.0000036,0.000425,120]
[407689332,1772676653368,-2726.26342801,0.00042822,15]
[407689333,1772676653380,-1.10745207,0.00042822,15]
[407689334,1772676653389,-152.0,0.00042829,4]
[407689335,1772676653399,-291.91087,0.00042929,30]
[407689336,1772676653408,-168.0,0.0004293,2]
[407689337,1772676653417,-588.05,0.00042949,120]
[407689338,1772676653426,-2691.09483055,0.0004295,10]
[407689339,1772676653437,-3624.30491373,0.0004295,10]
[407689340,1772676653446,-6403.17279599,0.00042966,15]
[407689341,1772676653460,-111.5813551,0.00042966,15]
[407689342,1772676653469,-10827.8,0.0004299,30]
[407689343,1772676653478,-2061.46074397,0.00043,30]
[407689344,1772676653487,-1542.0,0.00043,10]
[407689345,1772676653496,-200.0,0.00043068,120]
[407689346,1772676653505,-186.75,0.00043068,120]
[407689347,1772676653514,-210.0,0.00043068,120]
[407689348,1772676653524,-210.0,0.00043068,120]
[407689349,1772676653533,-210.0,0.00043068,120]
[407689350,1772676653542,-1000.0,0.00043084,2]
[407689351,1772676653551,-150.74,0.00043244,30]
[407689352,1772676653560,-350.0,0.00043462,6]
[407689353,1772676653569,-1305.96431808,0.000435,30]
[407689354,1772676653578,-187.373935,0.00043548,60]
[407689355,1772676653588,-906.3296474,0.00043717,2]
[407689356,1772676653600,-422.41999999,0.00043717,2]
[407689357,1772676654650,548.83026,0.000312,2]
[407689362,1772676787568,10000.0,0.0002,2]
[407689363,1772676789585,0.01,0.00014373,2]
[407689364,1772676789605,504.58959812,0.00014373,2]
[407689365,1772676803185,500.00003,0.00032908,2]
[407689366,1772676809210,-1000.0,0.00039987,2]
[407689367,1772676809238,-2500.0,0.00039988,2]
[407689368,1772676809268,-1181.78,0.00039988,2]
[407689369,1772676809437,-636.45,0.00039988,2]
[407689370,1772676817330,924.87087155,0.00039928,2]
[407689371,1772676818722,2747.13499888,0.00039928,2]
[407689372,1772676841369,5055.10412957,0.0003,2]
[407689373,1772676841390,4944.89587043,0.0003,2]
[407689374,1772676934980,171.6339,0.00039988,2]
[407689375,1772676935521,171.6339,0.00039988,2]
[407689376,1772676936183,171.6339,0.00039988,2]
[407689377,1772676936798,171.6339,0.00039988,2]
[407689378,1772676937511,171.6339,0.00039988,2]
[407689379,1772676938612,171.6339,0.00039988,2]
[407689380,1772677007194,500.0,0.00039988,2]
[407689381,1772677022773,500.0,0.00039888,2]
[407689382,1772677032058,-195.0,0.0004003,120]
[407689383,1772677032108,-4610.01,0.0004003,120]
[407689384,1772677034618,-389.99,0.0004003,120]
[407689385,1772677034657,-2834.02977194,0.00040034,120]
[407689386,1772677034697,-250.0,0.00040043,120]
[407689387,1772677034728,-195.0,0.00040043,120]
[407689388,1772677038480,-5000.0,0.00040067,120]
[407689389,1772677049522,-250.0,0.00040099,120]
[407689390,1772677049550,-195.0,0.00040099,120]
[407689391,1772677049580,-550.0,0.00040134,5]
[407689392,1772677049610,-1439.0,0.00040135,5]
[407689393,1772677049641,-550.0,0.00040135,5]
[407689394,1772677049671,-1832.01,0.00040135,5]
[407689395,1772677053021,-367.99,0.00040135,5]
[407689396,1772677053051,-300.0,0.00040135,5]
[407689397,1772677053082,-993.21600309,0.00040136,120]
[407689398,1772677053115,-1677.59799382,0.00040996,120]
[407689399,1772677056125,-3322.40200618,0.00040996,120]
[407689400,1772677056155,-161.0,0.00041,2]
[407689401,1772677059988,1242.57573902,0.00041178,2]
[407689402,1772677084033,500.0,0.0004,30]
[407689403,1772677120282,9500.01,0.0004002,2]
[407689404,1772677120306,10000.01,0.0004002,2]
[407689405,1772677120329,10000.01,0.0004002,2]
[407689406,1772677120349,10000.01,0.0004002,2]
[407689407,1772677120373,10000.01,0.0004002,2]
[407689408,1772677120394,10000.01,0.0004002,2]
[407689409,1772677470388,-997.64,0.0003809,2]
[407689410,1772677470421,-250.0,0.00038993,120]
[407689411,1772677470454,-215.45154,0.0003933,60]
[407689412,1772677470483,-648.27,0.0003989,10]
[407689413,1772677470510,-151.0,0.00039897,14]
[407689414,1772677470537,-400.0,0.00039898,5]
[407689415,1772677470565,-434.25992,0.00039899,56]
[407689416,1772677476437,-3806.76708,0.00039899,56]
[407689417,1772677476465,-169.812,0.00039899,56]
[407689418,1772677476494,-150.0,0.00039899,4]
[407689419,1772677507336,10000.01,0.000359,2]
[407689420,1772677507362,10000.01,0.000359,2]
[407689421,1772677507387,789.98,0.000359,2]
[407689422,1772677600538,175.12,0.000127,2]
[407689424,1772677819330,242.0,0.00033693,30]
[407689428,1772677831785,-291.23976464,0.000381,33]
[407689429,1772677831795,-166.66,0.00038231,30]
[407689430,1772677831804,-166.66,0.00039036,30]
[407689431,1772677831814,-232.335878,0.00039624,60]
[407689432,1772677831823,-58.60914013,0.00039657,120]
[407689433,1772677831850,-145.81291891,0.00039657,120]
[407689434,1772677831860,-400.0,0.00039756,5]
[407689435,1772677831870,-1221.64860393,0.00039756,5]
[407689436,1772677831882,-378.35139607,0.00039756,5]
[407689437,1772677831897,-195.0,0.00039757,120]
[407689438,1772677831917,-1466.13536222,0.00039757,120]
[407689439,1772677832003,-3533.86463778,0.00039757,120]
[407689440,1772677832013,-500.0,0.00039757,120]
[407689441,1772677832024,-5881.92841379,0.000398,2]
[407689442,1772677832033,-166.66,0.00039841,30]
[407689443,1772677832043,-195.0,0.00039848,120]
[407689444,1772677832052,-502.72522659,0.00039848,120]
[407689445,1772677832062,-55957.53867169,0.0003989,2]
[407689446,1772677832071,-33873.65429939,0.000399,120]
[407689447,1772677832083,-14929.24277552,0.000399,120]
[407689448,1772677832094,-84084.59293241,0.000399,120]
[407689451,1772677838082,-26708.50999268,0.000399,120]
[407689452,1772677838092,-160.0,0.000399,120]
[407689453,1772677838101,-284.4246,0.00039925,2]
[407689454,1772677838112,-841.0,0.0004,2]
[407689455,1772677838122,-408.28,0.0004,120]
[407689456,1772677838131,-696.88,0.0004,120]
[407689457,1772677838141,-330.73,0.0004,120]
[407689458,1772677838151,-362.43,0.0004,120]
[407689459,1772677838160,-269.97,0.0004,120]
[407689460,1772677838170,-520.48,0.00040392,120]
[407689461,1772677838180,-2000.0,0.000405,120]
[407689462,1772677838190,-241.27305216,0.00040501,2]
[407689463,1772677838200,-1341.0,0.00040546,2]
[407689464,1772677838213,-570.18,0.00040546,2]
[407689465,1772677838224,-3501.0,0.00040546,2]
[407689466,1772677838235,-182.0,0.00040612,2]
[407689467,1772677838246,-1500.0,0.0004063,120]
[407689468,1772677838257,-166.66,0.00040645,30]
[407689469,1772677838266,-3669.43828402,0.00040846,15]
[407689470,1772677838278,-1319.4109735,0.00040846,15]
[407689471,1772677838291,-893.07915625,0.00040846,15]
[407689472,1772677838301,-336.0,0.00040859,2]
[407689473,1772677838312,-577.48,0.00041096,90]
[407689474,1772677838323,-1535.40029869,0.00041317,2]
[407689478,1772677840468,-401.91416982,0.00040491,50]
[407689479,1772677840477,-96.65392246,0.00041317,2]
[407689480,1772677840525,-946.05260061,0.00041317,2]
[407689485,1772677843045,-200.0,0.000412,2]
[407689486,1772677843055,-1200.00365921,0.00041317,2]
[407689487,1772677843100,-673.3310658,0.00041317,2]
[407689492,1772677845935,-1115.55429173,0.00041317,2]
[407689493,1772677845944,-169.66851236,0.000414,2]
[407689494,1772677845953,-166.66,0.0004145,30]
[407689495,1772677845962,-273.30410941,0.000415,120]
[407689496,1772677845970,-2000.0,0.000415,2]
[407689497,1772677845979,-997.64,0.00041514,120]
[407689498,1772677845988,-1452.34,0.00041533,2]
[407689499,1772677845997,-152.0,0.00041612,3]
[407689500,1772677846006,-6692.7572231,0.00041833,2]
[407689501,1772677846014,-800.0,0.00041867,15]
[407689502,1772677846023,-800.0,0.00041867,15]
[407689503,1772677846032,-800.0,0.00041867,15]
[407689504,1772677846041,-800.0,0.00041867,15]
[407689505,1772677846050,-800.0,0.00041867,15]
[407689506,1772677846058,-800.0,0.00041867,15]
[407689507,1772677846067,-666.38529439,0.00041867,15]
[407689508,1772677846076,-5881.92841377,0.00041892,15]
[407689509,1772677846086,-342.57665036,0.00041967,2]
[407689588,1772678158463,1090.0,0.00017,120]
[407689590,1772678236973,-301.17675416,0.00038,7]
[407689591,1772678410743,150.0,0.00038,120]
[407689596,1772678613386,800.08511673,0.0003,2]
[407689597,1772678728068,6994.50727138,0.00038,120]
[407689598,1772678848671,290.419849,0.00036723,60]
[407689599,1772678862544,9135.41006432,0.00038,2]
[407689600,1772678901363,187.373935,0.00036723,60]
[407689601,1772678977756,386.80615168,0.000127,2]
[407689602,1772678977777,159.83384832,0.000127,2]
[407689604,1772679031963,-195.0,0.00038087,120]
[407689605,1772679031973,-300.0,0.00038088,120]
[407689606,1772679031983,-300.0,0.00038088,120]
[407689607,1772679031993,-195.0,0.00038088,120]
[407689608,1772679032002,-195.0,0.00038089,120]
[407689609,1772679032012,-301.89803185,0.00038095,120]
[407689610,1772679032021,-172.361232,0.00038425,60]
[407689611,1772679032030,-222.21460696,0.00038555,120]
[407689612,1772679032040,-1600.0,0.00038655,5]
[407689613,1772679032049,-1281.63,0.00038656,2]
[407689614,1772679032059,-1510.38505464,0.00038656,2]
[407689615,1772679032071,-607.56498033,0.00038656,2]
[407689616,1772679032101,-170.34996503,0.00038656,2]
[407689617,1772679032110,-299.99,0.00038656,30]
[407689618,1772679032119,-9413.92,0.00038656,2]
[407689619,1772679032128,-150.99,0.00038656,2]
[407689620,1772679032138,-404.68,0.00038656,10]
[407689621,1772679032147,-683.0,0.00039983,2]
[407689622,1772679032157,-802.0,0.00039986,2]
[407689623,1772679032166,-423.27305216,0.00039989,2]
[407689624,1772679032175,-1282.09,0.0004,120]
[407689625,1772679032184,-213.18,0.0004,120]
[407689626,1772679032194,-408.27,0.0004,120]
[407689627,1772679032205,-217.54660486,0.0004,120]
[407689628,1772679032216,-382.56411821,0.0004,120]
[407689629,1772679032227,-96.75927693,0.0004,120]
[407689630,1772679032236,-269.96,0.0004,120]
[407689632,1772679032245,-362.42,0.0004,120]
[407689633,1772679032254,-330.72,0.0004,120]
[407689634,1772679032264,-159.0,0.0004,120]
[407689635,1772679032272,-43.26406631,0.0004,120]
[407689636,1772679032284,-110.73593369,0.0004,120]
[407689637,1772679032293,-150.0,0.00040085,2]
[407689638,1772679032302,-156.0,0.00040085,2]
[407689639,1772679032311,-286.07886631,0.00040277,2]
[407689641,1772679032322,-940.38306014,0.00040277,2]
[407689643,1772679032333,-1013.08682692,0.00040277,2]
[407689646,1772679032355,-636.65095903,0.00040277,2]
[407689647,1772679032366,-1258.9,0.00040277,2]
[407689648,1772679032377,-2792.2015893,0.00040277,2]
[407689649,1772679032386,-200.0,0.00040281,2]
[407689650,1772679032395,-39.6615699,0.00040308,2]
[407689651,1772679032410,-315.11942113,0.00040308,2]
[407689652,1772679032423,-598.56,0.00040308,2]
[407689653,1772679032454,-802.43463569,0.00040308,2]
[407689654,1772679032465,-323.3292545,0.00040308,2]
[407689655,1772679032476,-304.03423716,0.00040308,2]
[407689656,1772679032487,-1562.22336098,0.00040308,2]
[407689662,1772679038086,-841.41446949,0.00040308,2]
[407689663,1772679038098,-488.41431202,0.00040308,2]
[407689664,1772679038112,-436.75223375,0.00040308,2]
[407689665,1772679038140,-5796.11170988,0.00040308,2]
[407689666,1772679038150,-1691.467723,0.00040308,2]
[407689667,1772679038159,-1826.5687524,0.00040308,2]
[407689668,1772679038168,-2790.0,0.00040448,60]
[407689669,1772679038178,-169.812,0.00040448,58]
[407689670,1772679038188,-3392.822,0.00040448,58]
[407689671,1772679038197,-2000.0,0.000405,2]
[407689672,1772679038208,-3765.42,0.00041155,2]
[407689673,1772679038217,-222.21460693,0.0004122,120]
[407689674,1772679038226,-13303.93,0.00041361,2]
[407689675,1772679038236,-1429.0,0.00041445,5]
[407689676,1772679038246,-1001.03,0.00041488,120]
[407689677,1772679038256,-569.91,0.00041508,2]
[407689678,1772679038267,-551.41,0.00041604,120]
[407689679,1772679038277,-1341.0,0.00041653,2]
[407689680,1772679038287,-570.18,0.00041653,2]
[407689681,1772679038296,-3518.619,0.00041653,2]
[407689682,1772679038305,-1278.0,0.00041653,2]
[407689683,1772679038318,-2790.0,0.00041781,60]
[407689684,1772679038327,-500.0,0.00041781,60]
[407689685,1772679038336,-1203.0548,0.0004179,2]
[407689686,1772679038346,-31634.6298,0.00041868,2]
[407689687,1772679038357,-693.3919763,0.00041891,15]
[407689688,1772679038367,-719.04747942,0.00041891,15]
[407689689,1772679038378,-745.65223616,0.00041891,15]
[407689690,1772679038388,-773.2413689,0.00041891,15]
[407689691,1772679038397,-801.85129955,0.00041891,15]
[407689692,1772679038407,-831.51979763,0.00041891,15]
[407689693,1772679038416,-862.28603014,0.00041891,15]
[407689694,1772679038425,-894.19061326,0.00041891,15]
[407689695,1772679038434,-927.27566595,0.00041891,15]